bitfinex/quotes_SOLUSD_20250212
["timestamp","ask_amount","ask_price","bid_price","bid_amount"]
[1739382628917,25.03522124,196.01,195.96,5.1028]
[1739382629099,25.03522124,196.01,195.97,0.12549]
[1739382629806,25.03522124,196.0,195.94,6.1746825]
[1739382630009,4.5914,196.02,195.91,30.13952124]
[1739382630010,25.03522124,195.97,195.91,30.13952124]
[1739382630311,25.03522124,195.96,195.92,0.12549]
[1739382630504,25.03522124,195.96,195.91,5.1043]
[1739382630935,25.03522124,195.98,195.92,0.12549]
[1739382631229,25.03522124,195.98,195.92,25.16071124]
[1739382632124,25.03522124,195.99,195.92,25.16071124]
[1739382632423,25.03522124,196.0,195.93,25.03522124]
[1739382632631,25.03522124,195.98,195.92,5.22939]
[1739382632817,25.03522124,195.96,195.9,5.22989]
[1739382633022,25.03522124,195.95,195.9,5.1044]
[1739382633201,25.03522124,195.94,195.9,5.1044]
[1739382633625,25.03522124,195.95,195.9,5.1044]
[1739382634118,25.03522124,195.93,195.89,0.12549]
[1739382634307,25.03522124,195.92,195.88,0.063]
[1739382634514,25.03522124,195.9,195.88,0.063]
[1739382634714,25.03522124,195.91,195.88,0.063]
[1739382635022,25.03522124,195.94,195.88,5.29349]
[1739382635225,25.03522124,195.93,195.88,5.29349]
[1739382636712,25.03522124,195.94,195.88,5.29349]
[1739382637218,25.03522124,195.98,195.91,25.03522124]
[1739382637425,25.03522124,195.97,195.9,25.16071124]
[1739382637628,25.03522124,195.96,195.9,25.16071124]
[1739382637828,25.03522124,195.96,195.89,25.28620124]
[1739382638132,25.03522124,195.95,195.9,5.1046]
[1739382638330,25.03522124,195.95,195.89,0.12549]
[1739382638836,25.03522124,195.99,195.92,25.03522124]
[1739382639034,6.5616,196.0,195.94,25.03522124]
[1739382639329,6.5616,196.0,195.92,0.25098]
[1739382639330,29.62662124,196.02,195.95,25.16071124]
[1739382639707,25.03522124,196.0,195.94,0.12549]
[1739382640538,4.5914,196.02,195.94,0.12549]
[1739382640539,25.03522124,196.01,195.95,0.12549]
[1739382640739,4.5914,196.02,195.95,0.12549]
[1739382640740,25.03522124,196.0,195.95,0.12549]
[1739382641219,25.03522124,195.99,195.95,0.12549]
[1739382641907,25.03522124,196.0,195.95,0.12549]
[1739382642841,25.03522124,196.01,195.95,0.12549]
[1739382643032,4.5913,196.02,195.95,0.12549]
[1739382643033,4.5913,196.02,195.97,0.12549]
[1739382643632,29.62652124,196.02,195.97,0.12549]
[1739382644629,25.03522124,196.01,195.97,0.12549]
[1739382644830,25.03522124,196.0,195.93,30.13882124]
[1739382645014,25.03522124,195.99,195.93,5.1036]
[1739382645215,25.03522124,195.98,195.91,30.13932124]
[1739382645519,25.03522124,195.97,195.92,0.25098]
[1739382645729,25.03522124,195.96,195.92,0.12549]
[1739382645925,25.03522124,195.93,195.89,0.063]
[1739382646131,25.03522124,195.95,195.89,0.063]
[1739382646439,25.03522124,195.95,195.89,0.18849]
[1739382647238,29.62832124,195.95,195.89,0.18849]
[1739382647541,29.62832124,195.95,195.89,25.22371124]
[1739382648735,25.03522124,195.98,195.91,0.12549]
[1739382648946,25.03522124,195.98,195.92,25.03522124]
[1739382649129,25.03522124,195.98,195.91,25.16071124]
[1739382649440,29.62722124,195.99,195.93,25.28620124]
[1739382649622,29.62682124,196.01,195.96,0.12549]
[1739382649934,4.5914,196.02,195.96,25.03522124]
[1739382650115,29.62662124,196.02,195.96,25.03522124]
[1739382650318,29.62662124,196.02,195.96,0.12549]
[1739382650546,25.03522124,196.01,195.96,0.12549]
[1739382650725,25.03522124,196.0,195.95,0.12549]
[1739382651232,25.03522124,196.01,195.95,0.12549]
[1739382651428,25.03522124,196.01,195.95,25.16071124]
[1739382652135,25.03522124,195.99,195.92,50.26461124]
[1739382652328,25.03522124,195.98,195.92,25.1039]
[1739382652524,25.03522124,195.98,195.93,0.12549]
[1739382652731,25.03522124,195.99,195.93,25.16071124]
[1739382652931,4.5914,196.02,195.94,25.03522124]
[1739382652932,25.03522124,196.01,195.94,25.03522124]
[1739382653622,25.03522124,196.0,195.94,25.03522124]
[1739382654022,29.62702124,196.0,195.94,25.03522124]
[1739382654445,25.03522124,195.99,195.93,5.22929]
[1739382655432,25.03522124,195.99,195.93,5.1038]
[1739382655433,25.03522124,195.98,195.93,5.1038]
[1739382655631,25.03522124,195.96,195.92,0.12549]
[1739382656633,25.03522124,195.95,195.89,5.1677]
[1739382656834,25.03522124,195.95,195.9,0.12549]
[1739382657235,25.03522124,195.96,195.9,0.12549]
[1739382657940,29.62802124,195.96,195.9,0.12549]
[1739382658325,25.03522124,195.92,195.89,0.063]
[1739382658648,25.03522124,195.91,195.86,0.37647]
[1739382659340,25.03522124,195.92,195.86,0.37647]
[1739382659725,25.03522124,195.9,195.86,5.48207]
[1739382659924,25.03522124,195.91,195.86,5.48207]
[1739382660527,25.03522124,195.93,195.88,0.12549]
[1739382660943,4.5934,195.94,195.88,0.12549]
[1739382660944,25.03522124,195.92,195.88,0.12549]
[1739382661155,25.03522124,195.89,195.85,24.63493718]
[1739382661351,25.03522124,195.86,195.85,24.63493718]
[1739382661642,25.03522124,195.86,195.83,0.12549]
[1739382662047,25.03522124,195.84,195.81,0.063]
[1739382662235,25.03522124,195.9,195.81,0.063]
[1739382662236,25.03522124,195.83,195.81,0.063]
[1739382662438,25.03522124,195.82,195.81,0.063]
[1739382664052,29.63112124,195.83,195.81,0.063]
[1739382664470,25.03522124,195.83,195.81,0.063]
[1739382664655,25.03522124,195.86,195.81,0.18849]
[1739382664970,29.63002124,195.87,195.81,0.18849]
[1739382665259,25.03522124,195.87,195.81,30.33061124]
[1739382665465,25.03522124,195.87,195.81,5.29539]
[1739382665646,25.03522124,195.87,195.81,30.33061124]
[1739382665843,29.62962124,195.89,195.83,0.12549]
[1739382666146,4.5944,195.89,195.83,25.03522124]
[1739382666364,29.62962124,195.89,195.83,25.03522124]
[1739382666664,25.03522124,195.88,195.82,25.28620124]
[1739382666860,25.03522124,195.88,195.82,30.39270124]
[1739382667167,25.03522124,195.88,195.82,5.35748]
[1739382667540,25.03522124,195.86,195.82,5.23199]
[1739382668157,25.03522124,195.85,195.82,5.23199]
[1739382668468,25.03522124,195.86,195.82,5.23199]
[1739382668661,25.03522124,195.87,195.82,0.12549]
[1739382668969,29.63012124,195.87,195.81,0.063]
[1739382669146,25.03522124,195.86,195.81,0.063]
[1739382669343,25.03522124,195.85,195.81,0.063]
[1739382669556,25.03522124,195.83,195.81,0.063]
[1739382671163,29.63092124,195.84,195.81,0.063]
[1739382673054,25.03522124,195.85,195.81,0.063]
[1739382673260,25.03522124,195.87,195.81,0.063]
[1739382673452,25.03522124,195.86,195.81,0.063]
[1739382673655,15.67363267,195.84,195.81,0.063]
[1739382674251,15.67363267,195.85,195.81,0.063]
[1739382674453,15.67363267,195.89,195.83,15.79912267]
[1739382674687,15.67363267,195.9,195.83,15.79912267]
[1739382674859,15.67363267,195.9,195.85,0.12549]
[1739382675560,15.67363267,195.89,195.83,35.67363267]
[1739382675753,15.67363267,195.88,195.83,0.12549]
[1739382676177,15.67363267,195.88,195.82,5.1067]
[1739382676570,15.67363267,195.87,195.82,5.1067]
[1739382677586,15.67363267,195.88,195.82,5.1067]
[1739382677782,15.67363267,195.88,195.82,20.78033267]
[1739382677976,15.67363267,195.88,195.83,0.12549]
[1739382678168,15.67363267,195.9,195.83,15.79912267]
[1739382678562,15.67363267,195.9,195.84,5.1062]
[1739382678984,15.67363267,195.91,195.85,16.17559267]
[1739382679278,15.67363267,195.92,195.85,16.17559267]
[1739382679482,0.03,195.93,195.88,0.12549]
[1739382679665,0.03,195.93,195.9,15.67363267]
[1739382679870,0.03,195.93,195.92,15.67363267]
[1739382680171,0.03,195.93,195.92,15.79912267]
[1739382680380,0.03,195.93,195.92,17.24717197]
[1739382680568,0.03,195.93,195.92,22.35127197]
[1739382681267,0.03,195.93,195.92,35.7631205]
[1739382681463,0.03,195.93,195.92,37.2686205]
[1739382681665,0.03,195.93,195.92,49.64305327]
[1739382681882,0.03,195.93,195.92,36.23120474]
[1739382682180,0.03,195.93,195.92,35.15962544]
[1739382682364,0.03,195.93,195.92,34.90864544]
[1739382682563,0.03,195.93,195.92,34.78315544]
[1739382683173,0.03,195.93,195.92,33.27765544]
[1739382683484,0.03,195.93,195.92,0.12549]
[1739382684193,0.03,195.93,195.9,5.1046]
[1739382684388,0.03,195.93,195.9,0.12549]
[1739382685681,25.06041635,195.93,195.86,25.03041635]
[1739382685888,25.03041635,195.91,195.87,5.1053]
[1739382686087,25.03041635,195.91,195.88,0.12549]
[1739382686482,25.03041635,195.9,195.85,5.23119]
[1739382686887,25.03041635,195.9,195.86,0.12549]
[1739382687183,25.03041635,195.91,195.86,0.12549]
[1739382688486,29.62411635,195.92,195.86,0.12549]
[1739382688672,0.03,195.91,195.86,25.15590635]
[1739382689092,25.06041635,195.91,195.86,0.12549]
[1739382690370,0.03,195.91,195.86,0.12549]
[1739382692801,0.03,195.91,195.86,25.15590635]
[1739382692997,0.03,195.91,195.86,30.26140635]
[1739382693881,0.03,195.91,195.86,5.23099]
[1739382694491,25.06041635,195.91,195.86,5.23099]
[1739382694700,25.03041635,195.9,195.84,5.1059]
[1739382695075,25.06041635,195.91,195.85,0.12549]
[1739382695375,0.03,195.91,195.85,25.15590635]
[1739382695776,0.03,195.91,195.86,25.03041635]
[1739382696172,0.03,195.91,195.86,28.05984781]
[1739382696377,0.03,195.91,195.86,3.02943146]
[1739382696577,25.06041635,195.91,195.86,3.02943146]
[1739382697716,0.03,195.91,195.86,3.02943146]
[1739382698195,25.06041635,195.91,195.86,3.02943146]
[1739382698397,29.65441635,195.91,195.86,3.02943146]
[1739382698711,25.03041635,195.9,195.86,3.02943146]
[1739382698887,25.03041635,195.88,195.86,3.02943146]
[1739382699205,25.03041635,195.9,195.86,3.02943146]
[1739382700104,4.5944,195.89,195.86,3.02943146]
[1739382700707,4.5944,195.89,195.84,3.02943146]
[1739382700915,29.62481635,195.89,195.84,3.02943146]
[1739382701080,25.03041635,195.86,195.84,3.02943146]
[1739382701282,25.03041635,195.85,195.84,3.02943146]
[1739382701805,15.67400136,195.85,195.84,3.02943146]
[1739382701980,15.67400136,195.85,195.83,0.063]
[1739382704388,15.67400136,195.84,195.83,0.063]
[1739382706004,20.26950136,195.84,195.83,0.063]
[1739382712601,15.67400136,195.84,195.83,0.063]
[1739382712808,15.67400136,195.9,195.83,15.73700136]
[1739382713118,15.70400136,195.91,195.85,15.67400136]
[1739382713289,15.70400136,195.91,195.84,15.67400136]
[1739382713912,15.70400136,195.91,195.85,15.67400136]
[1739382714119,15.70400136,195.91,195.84,15.67400136]
[1739382714495,15.67400136,195.9,195.83,15.73700136]
[1739382714692,15.67400136,195.9,195.84,5.23169]
[1739382715207,15.67400136,195.89,195.84,5.23169]
[1739382715914,15.67400136,195.88,195.84,5.1062]
[1739382716502,15.67400136,195.89,195.84,5.1062]
[1739382716703,15.67400136,195.89,195.83,5.1694]
[1739382717935,15.67400136,195.89,195.84,8.13498118]
[1739382719514,15.67400136,195.89,195.83,20.84340136]
[1739382719921,4.6239,195.91,195.83,20.84340136]
[1739382719922,15.67400136,195.9,195.83,20.84340136]
[1739382720222,15.67400136,195.88,195.83,5.1694]
[1739382720516,15.67400136,195.86,195.83,0.063]
[1739382720719,15.67400136,195.85,195.83,0.063]
[1739382721223,15.67400136,195.84,195.83,0.063]
[1739382721593,33.68134989,195.84,195.83,0.063]
[1739382721798,40.08344989,195.84,195.83,0.063]
[1739382722005,40.20893989,195.84,195.83,0.063]
[1739382722411,33.41184853,195.82,195.81,0.063]
[1739382722597,35.67400136,195.82,195.81,0.063]
[1739382723507,53.68184989,195.82,195.81,0.063]
[1739382725118,40.27000136,195.82,195.81,0.063]
[1739382725702,15.67400136,195.84,195.81,0.063]
[1739382725920,4.5957,195.84,195.81,0.063]
[1739382726100,4.5957,195.84,195.83,0.063]
[1739382726503,15.70400136,195.85,195.83,0.063]
[1739382726726,15.67400136,195.84,195.83,0.063]
[1739382728031,20.26950136,195.84,195.83,0.063]
[1739382728236,15.67400136,195.84,195.83,0.063]
[1739382733413,33.68134989,195.84,195.83,0.063]
[1739382733803,33.80683989,195.84,195.83,0.063]
[1739382735224,33.68134989,195.84,195.83,0.063]
[1739382735931,33.80683989,195.84,195.83,0.063]
[1739382736329,33.68134989,195.84,195.83,0.063]
[1739382740026,33.80683989,195.84,195.83,0.063]
[1739382740233,20.0,195.82,195.81,0.063]
[1739382740421,44.88534125,195.82,195.81,0.063]
[1739382741029,14.66282853,195.81,195.8,0.0001]
[1739382741335,46.01083125,195.81,195.8,0.0001]
[1739382741543,49.60703125,195.81,195.8,0.0001]
[1739382741730,69.47005523,195.81,195.8,0.0001]
[1739382742418,69.47005523,195.81,195.73,0.063]
[1739382742419,13.41184853,195.77,195.73,0.063]
[1739382742616,10.04220534,195.74,195.73,0.063]
[1739382743337,10.04220534,195.75,195.73,0.063]
[1739382743720,20.28672371,195.76,195.73,0.063]
[1739382743934,15.68912371,195.77,195.73,0.063]
[1739382744122,20.28632371,195.77,195.73,0.063]
[1739382744528,15.68912371,195.76,195.73,0.063]
[1739382744929,20.28532371,195.82,195.75,15.68912371]
[1739382745133,4.5962,195.82,195.76,15.68912371]
[1739382745329,20.28532371,195.82,195.76,15.68912371]
[1739382745531,15.68912371,195.8,195.74,15.68912371]
[1739382745727,15.68912371,195.8,195.74,20.79782371]
[1739382745917,15.68912371,195.81,195.74,20.79782371]
[1739382746325,15.68912371,195.81,195.75,15.68912371]
[1739382746937,15.68912371,195.81,195.75,18.70894263]
[1739382747155,20.28462371,195.84,195.77,15.68912371]
[1739382747339,4.5955,195.84,195.78,15.68912371]
[1739382747538,0.03,195.85,195.79,15.68912371]
[1739382748846,0.03,195.85,195.8,15.68912371]
[1739382749046,15.71912371,195.85,195.79,15.68912371]
[1739382749440,15.71912371,195.85,195.8,3.01742044]
[1739382750228,15.71912371,195.85,195.8,2.93381755]
[1739382750435,0.03,195.84,195.8,2.93381755]
[1739382750635,0.03,195.84,195.79,15.68912371]
[1739382751644,0.03,195.84,195.78,20.92211371]
[1739382751845,0.03,195.84,195.8,3.76637286]
[1739382753947,15.71912371,195.84,195.8,3.76637286]
[1739382754145,15.68912371,195.83,195.8,3.76637286]
[1739382754335,15.68912371,195.82,195.8,3.76637286]
[1739382754530,15.68912371,195.81,195.8,3.76637286]
[1739382754923,15.68912371,195.81,195.77,0.063]
[1739382756139,20.28522371,195.82,195.77,0.063]
[1739382756339,4.5961,195.82,195.77,0.063]
[1739382756540,20.28492371,195.83,195.77,15.75212371]
[1739382756752,4.5958,195.83,195.77,15.75212371]
[1739382756954,0.03,195.84,195.79,15.68912371]
[1739382757946,0.03,195.84,195.81,15.68912371]
[1739382758147,0.03,195.84,195.8,15.68912371]
[1739382758747,0.03,195.84,195.78,20.79682371]
[1739382759063,15.71912371,195.84,195.78,20.79682371]
[1739382759360,15.71912371,195.84,195.78,5.1077]
[1739382759547,15.68912371,195.83,195.78,5.1077]
[1739382760364,15.68912371,195.81,195.77,0.063]
[1739382761438,20.28552371,195.81,195.77,0.063]
[1739382762464,20.28552371,195.81,195.79,0.063]
[1739382763656,15.68912371,195.82,195.79,0.063]
[1739382764153,15.68912371,195.81,195.79,0.063]
[1739382764362,15.68912371,195.8,195.79,0.063]
[1739382764947,44.91558595,195.8,195.79,0.063]
[1739382765658,49.51208595,195.8,195.79,0.063]
[1739382767058,49.76306595,195.8,195.79,0.063]
[1739382767250,0.12549,195.78,195.77,0.063]
[1739382767449,29.47744224,195.78,195.77,0.063]
[1739382768564,34.07434224,195.78,195.77,0.063]
[1739382768771,20.0,195.74,195.73,0.063]
[1739382769062,51.05004224,195.74,195.73,0.063]
[1739382770143,55.64794224,195.74,195.73,0.063]
[1739382770350,55.27147224,195.74,195.73,0.063]
[1739382773873,137.57147224,195.74,195.73,0.063]
[1739382774572,137.69696224,195.74,195.73,0.063]
[1739382779664,132.05484394,195.74,195.73,0.063]
[1739382779871,49.75484394,195.74,195.73,0.063]
[1739382781073,48.18224394,195.74,195.73,0.063]
[1739382783675,48.18224394,195.74,195.71,0.063]
[1739382783676,0.25098,195.72,195.71,0.063]
[1739382783880,33.41184853,195.7,195.66,0.063]
[1739382784082,83.64687558,195.7,195.66,0.063]
[1739382784462,20.0,195.67,195.66,0.063]
[1739382784660,43.83532394,195.67,195.66,0.0001]
[1739382784978,20.12549,195.64,195.63,0.063]
[1739382785171,43.58434394,195.64,195.63,0.0001]
[1739382785369,0.12549,195.62,195.61,0.063]
[1739382785565,13.53733853,195.62,195.61,0.063]
[1739382785772,33.8588642,195.62,195.61,0.063]
[1739382786171,34.1098442,195.62,195.61,0.0001]
[1739382786579,33.8588642,195.62,195.61,0.0001]
[1739382786773,33.7333742,195.62,195.61,0.0001]
[1739382788179,34.1098442,195.62,195.61,0.0001]
[1739382789194,50.95615987,195.62,195.61,0.0001]
[1739382789485,33.53733853,195.58,195.57,0.063]
[1739382789685,49.2581642,195.58,195.57,0.063]
[1739382789893,53.8597642,195.58,195.57,0.063]
[1739382791389,54.1107442,195.58,195.57,0.063]
[1739382791571,55.1107442,195.58,195.57,0.063]
[1739382791973,62.8927342,195.58,195.57,0.0001]
[1739382792216,61.8927342,195.58,195.57,0.0001]
[1739382792392,60.7672442,195.58,195.57,0.0001]
[1739382793309,142.8162642,195.58,195.57,0.0001]
[1739382794103,20.32242567,195.58,195.57,0.0001]
[1739382794404,15.72082567,195.6,195.57,0.0001]
[1739382794607,4.6009,195.61,195.57,0.0001]
[1739382794780,20.32172567,195.61,195.57,0.0001]
[1739382794980,15.72082567,195.61,195.57,0.0001]
[1739382796582,15.72082567,195.62,195.57,0.0001]
[1739382797113,15.72082567,195.61,195.57,0.0001]
[1739382797284,15.72082567,195.6,195.57,0.0001]
[1739382797813,15.72082567,195.58,195.57,0.0001]
[1739382798118,15.72082567,195.59,195.57,0.0001]
[1739382800891,4.601,195.61,195.57,0.0001]
[1739382800892,15.72082567,195.58,195.57,0.0001]
[1739382803008,15.72082567,195.59,195.57,0.0001]
[1739382803399,15.72082567,195.6,195.57,0.0001]
[1739382804183,82.3,195.62,195.57,15.72092567]
[1739382804485,82.3,195.62,195.58,15.72082567]
[1739382804700,82.3,195.62,195.57,15.72092567]
[1739382805711,82.3,195.62,195.58,5.1129]
[1739382805893,82.3,195.62,195.59,1.6659]
[1739382806407,93.89591697,195.66,195.6,15.72082567]
[1739382806582,82.3,195.66,195.61,15.72082567]
[1739382806788,82.3,195.66,195.6,15.72082567]
[1739382806989,15.72082567,195.65,195.59,23.57802567]
[1739382807210,15.72082567,195.65,195.59,7.8572]
[1739382808096,15.72082567,195.65,195.6,5.1124]
[1739382808590,15.72082567,195.64,195.6,5.1124]
[1739382809417,15.72082567,195.61,195.57,0.0001]
[1739382809588,4.6002,195.64,195.59,0.063]
[1739382809589,29.1326742,195.6,195.59,0.063]
[1739382810099,29.2581642,195.6,195.59,0.063]
[1739382810531,44.97898987,195.6,195.59,0.063]
[1739382811201,49.58018987,195.6,195.59,0.063]
[1739382812089,33.7338742,195.6,195.59,0.063]
[1739382812495,33.8593642,195.6,195.59,0.063]
[1739382813195,49.58018987,195.6,195.59,0.063]
[1739382813698,33.7338742,195.6,195.59,0.063]
[1739382814299,20.32202567,195.6,195.59,0.063]
[1739382815006,33.7338742,195.6,195.59,0.063]
[1739382815505,33.8593642,195.6,195.59,0.063]
[1739382815695,49.58018987,195.6,195.59,0.063]
[1739382816297,33.8593642,195.6,195.59,0.063]
[1739382816495,33.7338742,195.6,195.59,0.063]
[1739382818615,49.58018987,195.6,195.59,0.063]
[1739382819518,33.8593642,195.6,195.59,0.063]
[1739382819720,33.8593642,195.6,195.59,0.04233725]
[1739382820704,33.7338742,195.6,195.59,0.04233725]
[1739382822711,33.7638742,195.6,195.59,0.04233725]
[1739382824699,20.35202567,195.6,195.59,0.04233725]
[1739382824901,15.75082567,195.6,195.59,0.04233725]
[1739382825105,0.03,195.6,195.59,0.04233725]
[1739382825519,0.03,195.6,195.59,15.76316292]
[1739382826025,0.03,195.6,195.59,0.04233725]
[1739382826523,0.03,195.6,195.59,3.07497408]
[1739382830029,0.03,195.6,195.59,23.90849975]
[1739382830212,0.03,195.6,195.59,43.90849975]
[1739382830928,0.03,195.6,195.59,28.18767408]
[1739382831432,0.03,195.6,195.59,8.18767408]
[1739382831632,0.03,195.6,195.59,3.07497408]
[1739382834722,0.03,195.6,195.59,0.04233725]
[1739382835820,0.03,195.6,195.59,3.07497408]
[1739382837438,0.03,195.6,195.59,0.04233725]
[1739382838043,15.75082567,195.6,195.59,0.04233725]
[1739382839237,0.03,195.6,195.59,0.04233725]
[1739382841224,15.75082567,195.6,195.59,0.04233725]
[1739382841735,0.03,195.6,195.59,0.04233725]
[1739382842334,15.75082567,195.6,195.59,0.04233725]
[1739382843643,14.69016101,195.6,195.59,0.04233725]
[1739382844132,28.10200954,195.6,195.59,0.04233725]
[1739382845043,14.69016101,195.6,195.59,0.04233725]
[1739382845623,20.34838391,195.6,195.59,0.04233725]
[1739382853832,0.03,195.6,195.59,0.04233725]
[1739382854136,0.03,195.6,195.59,15.75952116]
[1739382854336,0.03,195.6,195.59,0.04233725]
[1739382854731,0.03,195.6,195.59,3.0876169]
[1739382856047,0.03,195.6,195.59,23.91750081]
[1739382857749,15.74718391,195.6,195.59,3.0876169]
[1739382858251,0.03,195.6,195.59,3.0876169]
[1739382862657,0.03,195.6,195.59,18.80480081]
[1739382862850,0.03,195.6,195.59,23.91750081]
[1739382867662,0.03,195.6,195.59,18.25113469]
[1739382868053,0.03,195.6,195.59,8.2003169]
[1739382868241,0.03,195.6,195.59,3.0876169]
[1739382870653,0.03,195.6,195.59,18.25113469]
[1739382871359,0.03,195.6,195.59,18.50211469]
[1739382871659,0.03,195.6,195.59,20.08811469]
[1739382873560,0.03,195.6,195.59,61.61571269]
[1739382873760,0.03,195.6,195.59,67.83781269]
[1739382874164,0.03,195.6,195.59,27.63454153]
[1739382874343,0.03,195.6,195.59,26.31021469]
[1739382876764,0.03,195.6,195.59,8.2003169]
[1739382878468,0.03,195.6,195.59,18.37662469]
[1739382879254,0.03,195.6,195.59,8.2003169]
[1739382881565,0.03,195.6,195.59,3.0876169]
[1739382882156,15.7369612,195.6,195.59,3.0876169]
[1739382883468,0.03,195.6,195.59,3.0876169]
[1739382883981,0.03,195.6,195.59,0.04233725]
[1739382895364,0.03,195.6,195.59,3.08520555]
[1739382900499,33.75000973,195.6,195.59,3.08520555]
[1739382900703,41.93929973,195.6,195.59,3.08520555]
[1739382900984,41.93929973,195.6,195.57,0.0001]
[1739382900985,20.0,195.58,195.57,0.0001]
[1739382901201,33.78831853,195.58,195.57,0.0001]
[1739382901572,0.12549,195.53,195.47,0.063]
[1739382901772,10.19433876,195.52,195.47,0.063]
[1739382902182,10.06884876,195.52,195.47,0.063]
[1739382902394,23.48069729,195.52,195.47,0.063]
[1739382902593,28.08379729,195.52,195.47,0.063]
[1739382903103,8.1674,195.54,195.47,0.063]
[1739382903104,22.83904876,195.54,195.48,10.06884876]
[1739382903276,8.1674,195.54,195.48,10.06884876]
[1739382903473,10.06884876,195.53,195.47,15.24754876]
[1739382903677,15.72421032,195.53,195.47,20.90291032]
[1739382904294,23.89161032,195.54,195.47,20.90291032]
[1739382904476,8.1674,195.54,195.48,15.72421032]
[1739382905078,33.73845885,195.55,195.49,15.72421032]
[1739382905489,20.32621032,195.57,195.51,15.78721032]
[1739382905687,15.72421032,195.58,195.51,15.78721032]
[1739382905997,0.03,195.6,195.54,15.72421032]
[1739382906187,13.44184853,195.6,195.54,15.72421032]
[1739382906385,13.41184853,195.58,195.52,15.72421032]
[1739382906593,15.72421032,195.56,195.51,0.063]
[1739382907391,13.41184853,195.55,195.51,0.063]
[1739382909401,29.13605885,195.55,195.51,0.063]
[1739382910688,98.02421032,195.56,195.51,0.063]
[1739382910883,82.3,195.56,195.52,15.72421032]
[1739382911386,82.3,195.56,195.51,15.78721032]
[1739382911595,82.3,195.56,195.52,15.72421032]
[1739382911901,82.3,195.56,195.53,5.1143]
[1739382913003,82.3,195.56,195.51,15.78721032]
[1739382913199,82.3,195.56,195.52,5.1145]
[1739382913709,82.3,195.56,195.54,15.72421032]
[1739382915087,82.3,195.56,195.55,5.1137]
[1739382915287,86.9009,195.62,195.55,5.1137]
[1739382915493,15.72421032,195.6,195.55,5.1137]
[1739382915705,0.03,195.58,195.55,5.1137]
[1739382918003,0.03,195.58,195.53,15.78721032]
[1739382918205,15.75421032,195.58,195.53,5.177]
[1739382918507,15.72421032,195.54,195.53,0.063]
[1739382919310,15.72421032,195.55,195.53,0.063]
[1739382920315,102.62611032,195.57,195.53,0.063]
[1739382920813,15.72421032,195.55,195.53,0.063]
[1739382921190,15.72421032,195.56,195.53,0.063]
[1739382922011,102.62611032,195.57,195.53,0.063]
[1739382922322,0.03,195.58,195.55,15.72421032]
[1739382922694,0.03,195.58,195.54,15.72421032]
[1739382923101,15.75421032,195.58,195.53,0.063]
[1739382923300,0.03,195.58,195.53,0.063]
[1739382924001,0.03,195.58,195.53,5.1773]
[1739382924610,15.75421032,195.58,195.53,0.063]
[1739382924791,15.72421032,195.56,195.53,0.063]
[1739382924989,15.72421032,195.55,195.53,0.063]
[1739382925614,13.44184853,195.58,195.53,0.063]
[1739382925615,15.72421032,195.56,195.53,0.063]
[1739382927425,20.32621032,195.57,195.53,0.063]
[1739382927926,15.72421032,195.56,195.53,0.063]
[1739382928307,98.02421032,195.57,195.53,0.063]
[1739382928510,15.72421032,195.54,195.53,0.063]
[1739382928709,111.43605885,195.54,195.53,0.063]
[1739382929800,116.03865885,195.54,195.53,0.063]
[1739382931530,82.3,195.54,195.53,0.063]
[1739382934205,15.72421032,195.55,195.53,0.063]
[1739382935329,15.72421032,195.56,195.53,0.063]
[1739382937847,15.72421032,195.55,195.53,0.063]
[1739382938528,29.13605885,195.54,195.53,0.063]
[1739382938908,29.26154885,195.54,195.53,0.063]
[1739382939109,36.99324885,195.54,195.53,0.063]
[1739382940031,41.59584885,195.54,195.53,0.063]
[1739382943336,13.53733853,195.53,195.51,0.063]
[1739382943521,29.13605885,195.52,195.51,0.063]
[1739382943723,45.23673917,195.52,195.51,0.063]
[1739382943917,45.23673917,195.52,195.47,0.063]
[1739382944134,29.26154885,195.48,195.47,0.063]
[1739382945024,33.86554885,195.48,195.47,0.063]